[Event "Titled Tuesday Blitz August 16 Early 2022"]
[White "Zaksaite, Salomeja"]
[Black "Mirimanian, Hayk"]
[WhiteFideId "12801496"]
[BlackFideId "4700180"]
[WhiteElo "1953"]
[BlackElo "2280"]
[Result "0-1"]
[Round "05"]
[TimeControl "180+2"]
[Date "2022.08.18"]
[WhiteClock "0:00:00"]
[BlackClock "0:00:00"]

1. e4 {[%clk 0:00:00]}  c5 {[%clk 0:00:00]} 2. Nf3 {[%clk 0:00:00]}  d6 {[%clk 0:00:00]} 3. d4 {[%clk 0:00:00]}  cxd4 {[%clk 0:00:00]} 4. Nxd4 {[%clk 0:00:00]}  Nf6 {[%clk 0:00:00]} 5. Nc3 {[%clk 0:00:00]}  a6 {[%clk 0:00:00]} 6. Bd3 {[%clk 0:00:00]}  g6 {[%clk 0:00:00]} 7. O-O {[%clk 0:00:00]}  Bg7 {[%clk 0:00:00]} 8. h3 {[%clk 0:00:00]}  O-O {[%clk 0:00:00]} 9. Be3 {[%clk 0:00:00]}  Nc6 {[%clk 0:00:00]} 10. Nce2 {[%clk 0:00:00]}  Bd7 {[%clk 0:00:00]} 11. c4 {[%clk 0:00:00]}  Rb8 {[%clk 0:00:00]} 12. Rc1 {[%clk 0:00:00]}  Nxd4 {[%clk 0:00:00]} 13. Bxd4 {[%clk 0:00:00]}  b5 {[%clk 0:00:00]} 14. cxb5 {[%clk 0:00:00]}  axb5 {[%clk 0:00:00]} 15. Bb1 {[%clk 0:00:00]}  Qa5 {[%clk 0:00:00]} 16. a3 {[%clk 0:00:00]}  b4 {[%clk 0:00:00]} 17. axb4 {[%clk 0:00:00]}  Qxb4 {[%clk 0:00:00]} 18. Nf4 {[%clk 0:00:00]}  Qb7 {[%clk 0:00:00]} 19. Re1 {[%clk 0:00:00]}  e5 {[%clk 0:00:00]} 20. Bc3 {[%clk 0:00:00]}  exf4 {[%clk 0:00:00]} 21. Qxd6 {[%clk 0:00:00]}  Nh5 {[%clk 0:00:00]} 22. e5 {[%clk 0:00:00]}  Be6 {[%clk 0:00:00]} 23. Be4 {[%clk 0:00:00]}  Qb6 {[%clk 0:00:00]} 24. Qd1 {[%clk 0:00:00]}  Rfd8 {[%clk 0:00:00]} 25. Qf3 {[%clk 0:00:00]}  Qb5 {[%clk 0:00:00]} 26. Bc6 {[%clk 0:00:00]}  Bd5 {[%clk 0:00:00]} 27. Bxb5 {[%clk 0:00:00]}  Bxf3 {[%clk 0:00:00]} 28. Ba5 {[%clk 0:00:00]}  Rd5 {[%clk 0:00:00]} 29. Bc6 {[%clk 0:00:00]}  Rxa5 {[%clk 0:00:00]} 30. Bxf3 {[%clk 0:00:00]}  Rxe5 {[%clk 0:00:00]} 31. Red1 {[%clk 0:00:00]}  Re7 {[%clk 0:00:00]} 0-1


[Site "https://www.chess.com"]

[Event "Titled Tuesday Blitz August 16 Early 2022"]
[White "Zemlyanskii, Ivan"]
[Black "Girinath, P.D.S."]
[WhiteFideId "24249971"]
[BlackFideId "5000572"]
[WhiteElo "1879"]
[BlackElo "2369"]
[Result "1-0"]
[Round "05"]
[TimeControl "180+2"]
[Date "2022.08.18"]
[WhiteClock "0:00:00"]
[BlackClock "0:00:00"]

1. d4 {[%clk 0:00:00]}  e6 {[%clk 0:00:00]} 2. c4 {[%clk 0:00:00]}  f5 {[%clk 0:00:00]} 3. g3 {[%clk 0:00:00]}  Nf6 {[%clk 0:00:00]} 4. Bg2 {[%clk 0:00:00]}  Be7 {[%clk 0:00:00]} 5. Nf3 {[%clk 0:00:00]}  O-O {[%clk 0:00:00]} 6. O-O {[%clk 0:00:00]}  d6 {[%clk 0:00:00]} 7. Nc3 {[%clk 0:00:00]}  a5 {[%clk 0:00:00]} 8. b3 {[%clk 0:00:00]}  Qe8 {[%clk 0:00:00]} 9. Ba3 {[%clk 0:00:00]}  Na6 {[%clk 0:00:00]} 10. Rc1 {[%clk 0:00:00]}  c6 {[%clk 0:00:00]} 11. Re1 {[%clk 0:00:00]}  e5 {[%clk 0:00:00]} 12. c5 {[%clk 0:00:00]}  dxc5 {[%clk 0:00:00]} 13. dxe5 {[%clk 0:00:00]}  Ne4 {[%clk 0:00:00]} 14. Nxe4 {[%clk 0:00:00]}  fxe4 {[%clk 0:00:00]} 15. Nd2 {[%clk 0:00:00]}  e3 {[%clk 0:00:00]} 16. fxe3 {[%clk 0:00:00]}  Be6 {[%clk 0:00:00]} 17. Nc4 {[%clk 0:00:00]}  Bxc4 {[%clk 0:00:00]} 18. Rxc4 {[%clk 0:00:00]}  Nb4 {[%clk 0:00:00]} 19. Qb1 {[%clk 0:00:00]}  Rd8 {[%clk 0:00:00]} 20. Bb2 {[%clk 0:00:00]}  Nd5 {[%clk 0:00:00]} 21. Qe4 {[%clk 0:00:00]}  Bg5 {[%clk 0:00:00]} 22. Bc1 {[%clk 0:00:00]}  Qe7 {[%clk 0:00:00]} 23. h4 {[%clk 0:00:00]}  Bh6 {[%clk 0:00:00]} 24. Kh2 {[%clk 0:00:00]}  Rde8 {[%clk 0:00:00]} 25. Qg4 {[%clk 0:00:00]}  Qxe5 {[%clk 0:00:00]} 26. Re4 {[%clk 0:00:00]}  Qc3 {[%clk 0:00:00]} 27. Rf1 {[%clk 0:00:00]}  Rxe4 {[%clk 0:00:00]} 28. Rxf8+ {[%clk 0:00:00]}  Kxf8 {[%clk 0:00:00]} 29. Bxe4 {[%clk 0:00:00]}  Qxc1 {[%clk 0:00:00]} 30. Qc8+ {[%clk 0:00:00]}  Kf7 {[%clk 0:00:00]} 31. Qxb7+ {[%clk 0:00:00]}  Ne7 {[%clk 0:00:00]} 32. Bxc6 {[%clk 0:00:00]}  Qxe3 {[%clk 0:00:00]} 33. Bf3 {[%clk 0:00:00]}  Qf2+ {[%clk 0:00:00]} 34. Kh3 {[%clk 0:00:00]}  Be3 {[%clk 0:00:00]} 35. Bd5+ {[%clk 0:00:00]}  Kf6 {[%clk 0:00:00]} 36. Qb6+ {[%clk 0:00:00]}  Ke5 {[%clk 0:00:00]} 37. Qe6+ {[%clk 0:00:00]}  Kd4 {[%clk 0:00:00]} 38. Qe4+ {[%clk 0:00:00]}  Kc3 {[%clk 0:00:00]} 39. Qxe7 {[%clk 0:00:00]}  Qf5+ {[%clk 0:00:00]} 40. Kh2 {[%clk 0:00:00]}  Qf2+ {[%clk 0:00:00]} 41. Bg2 {[%clk 0:00:00]}  Qxe2 {[%clk 0:00:00]} 42. Qe5+ {[%clk 0:00:00]}  Kc2 {[%clk 0:00:00]} 43. Qxg7 {[%clk 0:00:00]} 1-0


[Site "https://www.chess.com"]

[Event "Titled Tuesday Blitz August 16 Early 2022"]
[White "Zherebtsova, Alexandra"]
[Black "Simonovic, Miroslav"]
[WhiteFideId "24129518"]
[BlackFideId "919152"]
[WhiteElo "2025"]
[BlackElo "2043"]
[Result "1-0"]
[Round "05"]
[TimeControl "180+2"]
[Date "2022.08.18"]
[WhiteClock "0:00:00"]
[BlackClock "0:00:00"]

1. d4 {[%clk 0:00:00]}  Nf6 {[%clk 0:00:00]} 2. Nf3 {[%clk 0:00:00]}  c5 {[%clk 0:00:00]} 3. d5 {[%clk 0:00:00]}  b5 {[%clk 0:00:00]} 4. Bg5 {[%clk 0:00:00]}  Ne4 {[%clk 0:00:00]} 5. Bf4 {[%clk 0:00:00]}  d6 {[%clk 0:00:00]} 6. Qd3 {[%clk 0:00:00]}  Bf5 {[%clk 0:00:00]} 7. Qxb5+ {[%clk 0:00:00]}  Nd7 {[%clk 0:00:00]} 8. Nh4 {[%clk 0:00:00]}  Bg6 {[%clk 0:00:00]} 9. Nxg6 {[%clk 0:00:00]}  hxg6 {[%clk 0:00:00]} 10. Qd3 {[%clk 0:00:00]}  Qa5+ {[%clk 0:00:00]} 11. c3 {[%clk 0:00:00]}  Nef6 {[%clk 0:00:00]} 12. Nd2 {[%clk 0:00:00]}  c4 {[%clk 0:00:00]} 13. Nxc4 {[%clk 0:00:00]}  Qxd5 {[%clk 0:00:00]} 14. Qxd5 {[%clk 0:00:00]}  Nxd5 {[%clk 0:00:00]} 15. Bg3 {[%clk 0:00:00]}  Rb8 {[%clk 0:00:00]} 16. O-O-O {[%clk 0:00:00]}  N7f6 {[%clk 0:00:00]} 17. f3 {[%clk 0:00:00]}  Nb6 {[%clk 0:00:00]} 18. e4 {[%clk 0:00:00]}  Nfd7 {[%clk 0:00:00]} 19. Be2 {[%clk 0:00:00]}  Nxc4 {[%clk 0:00:00]} 20. Bxc4 {[%clk 0:00:00]}  Nb6 {[%clk 0:00:00]} 21. Bb5+ {[%clk 0:00:00]}  Kd8 {[%clk 0:00:00]} 22. e5 {[%clk 0:00:00]}  Kc7 {[%clk 0:00:00]} 23. Rd2 {[%clk 0:00:00]}  Rh5 {[%clk 0:00:00]} 24. Rhd1 {[%clk 0:00:00]}  dxe5 {[%clk 0:00:00]} 25. f4 {[%clk 0:00:00]}  e6 {[%clk 0:00:00]} 26. Be2 {[%clk 0:00:00]}  Rh8 {[%clk 0:00:00]} 27. f5 {[%clk 0:00:00]}  f6 {[%clk 0:00:00]} 28. fxe6 {[%clk 0:00:00]}  Bc5 {[%clk 0:00:00]} 29. Kb1 {[%clk 0:00:00]}  Rhe8 {[%clk 0:00:00]} 30. Bg4 {[%clk 0:00:00]}  Rbd8 {[%clk 0:00:00]} 31. b4 {[%clk 0:00:00]}  Be3 {[%clk 0:00:00]} 32. Rxd8 {[%clk 0:00:00]}  Rxd8 {[%clk 0:00:00]} 33. Rxd8 {[%clk 0:00:00]}  Kxd8 {[%clk 0:00:00]} 34. Kc2 {[%clk 0:00:00]}  Ke7 {[%clk 0:00:00]} 35. Kd3 {[%clk 0:00:00]}  Bc1 {[%clk 0:00:00]} 36. c4 {[%clk 0:00:00]}  Na8 {[%clk 0:00:00]} 37. c5 {[%clk 0:00:00]}  Nc7 {[%clk 0:00:00]} 38. Kc4 {[%clk 0:00:00]}  a6 {[%clk 0:00:00]} 39. a4 {[%clk 0:00:00]}  Nxe6 {[%clk 0:00:00]} 40. Bxe6 {[%clk 0:00:00]}  Kxe6 {[%clk 0:00:00]} 41. b5 {[%clk 0:00:00]}  axb5+ {[%clk 0:00:00]} 42. axb5 {[%clk 0:00:00]}  f5 {[%clk 0:00:00]} 43. b6 {[%clk 0:00:00]}  Kd7 {[%clk 0:00:00]} 44. Kb5 {[%clk 0:00:00]}  f4 {[%clk 0:00:00]} 45. c6+ {[%clk 0:00:00]}  Kc8 {[%clk 0:00:00]} 46. Bf2 {[%clk 0:00:00]}  Be3 {[%clk 0:00:00]} 47. Be1 {[%clk 0:00:00]}  e4 {[%clk 0:00:00]} 48. Ka6 {[%clk 0:00:00]}  f3 {[%clk 0:00:00]} 49. gxf3 {[%clk 0:00:00]}  exf3 {[%clk 0:00:00]} 50. Bg3 {[%clk 0:00:00]}  f2 {[%clk 0:00:00]} 51. b7+ {[%clk 0:00:00]}  Kd8 {[%clk 0:00:00]} 52. b8=Q+ {[%clk 0:00:00]}  Ke7 {[%clk 0:00:00]} 53. Qd6+ {[%clk 0:00:00]}  Kf7 {[%clk 0:00:00]} 54. Qd5+ {[%clk 0:00:00]}  Kf8 {[%clk 0:00:00]} 55. Qf3+ {[%clk 0:00:00]}  Kg8 {[%clk 0:00:00]} 56. Bxf2 {[%clk 0:00:00]}  g5 {[%clk 0:00:00]} 57. Bxe3 {[%clk 0:00:00]}  g4 {[%clk 0:00:00]} 58. Qxg4 {[%clk 0:00:00]}  Kh7 {[%clk 0:00:00]} 59. c7 {[%clk 0:00:00]}  g5 {[%clk 0:00:00]} 60. c8=Q {[%clk 0:00:00]}  Kh6 {[%clk 0:00:00]} 61. Qce6+ {[%clk 0:00:00]} 1-0


[Site "https://www.chess.com"]

[Event "Titled Tuesday Blitz August 16 Early 2022"]
[White "Zhigalko, Sergei"]
[Black "Shuvalova, Polina"]
[WhiteFideId "13502956"]
[BlackFideId "24171760"]
[WhiteElo "2662"]
[BlackElo "2330"]
[Result "1-0"]
[Round "05"]
[TimeControl "180+1"]
[Date "2022.08.16"]
[WhiteClock "0:00:12"]
[BlackClock "0:00:04"]

1. e4 {[%clk 0:03:00]}  c6 {[%clk 0:02:59]} 2. d4 {[%clk 0:03:00]}  d5 {[%clk 0:03:00]} 3. e5 {[%clk 0:03:01]}  Bf5 {[%clk 0:03:00]} 4. Nf3 {[%clk 0:03:02]}  e6 {[%clk 0:03:00]} 5. Be2 {[%clk 0:03:02]}  Ne7 {[%clk 0:03:00]} 6. O-O {[%clk 0:03:02]}  Ng6 {[%clk 0:03:00]} 7. Ne1 {[%clk 0:03:02]}  h5 {[%clk 0:03:00]} 8. Bd3 {[%clk 0:03:02]}  Bxd3 {[%clk 0:02:58]} 9. Nxd3 {[%clk 0:03:03]}  Nd7 {[%clk 0:02:42]} 10. Nd2 {[%clk 0:02:58]}  c5 {[%clk 0:02:42]} 11. c3 {[%clk 0:02:47]}  Qb6 {[%clk 0:02:40]} 12. Nf3 {[%clk 0:02:46]}  Be7 {[%clk 0:02:36]} 13. a4 {[%clk 0:02:21]}  a6 {[%clk 0:02:31]} 14. a5 {[%clk 0:02:18]}  Qc7 {[%clk 0:02:32]} 15. Re1 {[%clk 0:02:16]}  c4 {[%clk 0:02:20]} 16. Nf4 {[%clk 0:02:15]}  Nxf4 {[%clk 0:02:20]} 17. Bxf4 {[%clk 0:02:16]}  O-O-O {[%clk 0:02:14]} 18. Bg5 {[%clk 0:02:10]}  Nb8 {[%clk 0:02:10]} 19. Bxe7 {[%clk 0:02:02]}  Qxe7 {[%clk 0:02:10]} 20. b3 {[%clk 0:02:03]}  cxb3 {[%clk 0:02:00]} 21. Qxb3 {[%clk 0:01:55]}  Nc6 {[%clk 0:01:59]} 22. Reb1 {[%clk 0:01:53]}  Rd7 {[%clk 0:01:56]} 23. Ne1 {[%clk 0:01:37]}  f6 {[%clk 0:01:49]} 24. exf6 {[%clk 0:01:08]}  gxf6 {[%clk 0:01:23]} 25. Nd3 {[%clk 0:01:05]}  Rc7 {[%clk 0:01:20]} 26. Re1 {[%clk 0:01:00]}  Rd8 {[%clk 0:01:11]} 27. Nf4 {[%clk 0:00:58]}  Rd6 {[%clk 0:01:01]} 28. Nxh5 {[%clk 0:00:29]}  e5 {[%clk 0:00:56]} 29. Ng3 {[%clk 0:00:23]}  Qd7 {[%clk 0:00:56]} 30. dxe5 {[%clk 0:00:12]}  fxe5 {[%clk 0:00:54]} 31. Qa3 {[%clk 0:00:13]}  e4 {[%clk 0:00:51]} 32. Rad1 {[%clk 0:00:13]}  Re6 {[%clk 0:00:28]} 33. Rxe4 {[%clk 0:00:12]}  Kb8 {[%clk 0:00:15]} 34. Rxe6 {[%clk 0:00:09]}  Qxe6 {[%clk 0:00:16]} 35. h3 {[%clk 0:00:09]}  Rf7 {[%clk 0:00:12]} 36. Qc5 {[%clk 0:00:08]}  Rd7 {[%clk 0:00:10]} 37. Rb1 {[%clk 0:00:07]}  Ka8 {[%clk 0:00:10]} 38. Kh2 {[%clk 0:00:06]}  Qg6 {[%clk 0:00:10]} 39. Re1 {[%clk 0:00:06]}  Qf7 {[%clk 0:00:08]} 40. Re3 {[%clk 0:00:06]}  Rd8 {[%clk 0:00:06]} 41. Rf3 {[%clk 0:00:06]}  Qd7 {[%clk 0:00:05]} 42. Nf5 {[%clk 0:00:06]}  Qc7+ {[%clk 0:00:05]} 43. Ng3 {[%clk 0:00:06]}  Qb8 {[%clk 0:00:03]} 44. Rf5 {[%clk 0:00:05]}  d4 {[%clk 0:00:04]} 45. cxd4 {[%clk 0:00:05]}  Nxd4 {[%clk 0:00:05]} 46. Rf7 {[%clk 0:00:04]}  Ne6 {[%clk 0:00:05]} 47. Qf5 {[%clk 0:00:04]}  Nd4 {[%clk 0:00:05]} 48. Qf4 {[%clk 0:00:04]}  Qc8 {[%clk 0:00:03]} 49. Qc7 {[%clk 0:00:04]}  Qxc7 {[%clk 0:00:03]} 50. Rxc7 {[%clk 0:00:05]}  Nc6 {[%clk 0:00:04]} 51. h4 {[%clk 0:00:04]}  Nxa5 {[%clk 0:00:04]} 52. Nf5 {[%clk 0:00:05]}  Nc6 {[%clk 0:00:03]} 53. Ne7 {[%clk 0:00:04]}  Ne5 {[%clk 0:00:02]} 54. Kh3 {[%clk 0:00:03]}  a5 {[%clk 0:00:02]} 55. f4 {[%clk 0:00:03]}  Nf7 {[%clk 0:00:01]} 56. Nd5 {[%clk 0:00:02]}  Nd6 {[%clk 0:00:01]} 57. Nb6+ {[%clk 0:00:02]}  Ka7 {[%clk 0:00:02]} 58. Nd5 {[%clk 0:00:02]}  Ka6 {[%clk 0:00:02]} 59. Rc1 {[%clk 0:00:03]}  a4 {[%clk 0:00:02]} 60. h5 {[%clk 0:00:03]}  a3 {[%clk 0:00:02]} 61. g4 {[%clk 0:00:03]}  Nb5 {[%clk 0:00:01]} 62. g5 {[%clk 0:00:03]}  Rxd5 {[%clk 0:00:01]} 63. h6 {[%clk 0:00:04]}  Rd3+ {[%clk 0:00:02]} 64. Kg4 {[%clk 0:00:05]}  Rd2 {[%clk 0:00:02]} 65. Rh1 {[%clk 0:00:05]}  Rg2+ {[%clk 0:00:02]} 66. Kf3 {[%clk 0:00:05]}  a2 {[%clk 0:00:03]} 67. Kxg2 {[%clk 0:00:05]}  Nc3 {[%clk 0:00:04]} 68. Ra1 {[%clk 0:00:05]}  Nd5 {[%clk 0:00:03]} 69. h7 {[%clk 0:00:06]}  Nxf4+ {[%clk 0:00:03]} 70. Kf3 {[%clk 0:00:07]}  Ng6 {[%clk 0:00:04]} 71. Ke4 {[%clk 0:00:07]}  Kb5 {[%clk 0:00:03]} 72. Rxa2 {[%clk 0:00:08]}  Kc6 {[%clk 0:00:04]} 73. Rh2 {[%clk 0:00:08]}  Nh8 {[%clk 0:00:04]} 74. Kf5 {[%clk 0:00:09]}  Kd7 {[%clk 0:00:04]} 75. Kf6 {[%clk 0:00:10]}  Ke8 {[%clk 0:00:04]} 76. Kg7 {[%clk 0:00:11]}  Ke7 {[%clk 0:00:04]} 77. Re2+ {[%clk 0:00:11]}  Kd6 {[%clk 0:00:04]} 78. Kxh8 {[%clk 0:00:12]} 1-0


[Site "https://www.chess.com"]

[Event "Titled Tuesday Blitz August 16 Early 2022"]
[White "Zhurbinsky, David"]
[Black "Ardila, Oscar Humberto"]
[WhiteFideId "2072904"]
[BlackFideId "4404742"]
[WhiteElo "1996"]
[BlackElo "1939"]
[Result "0-1"]
[Round "05"]
[TimeControl "180+2"]
[Date "2022.08.18"]
[WhiteClock "0:00:00"]
[BlackClock "0:00:00"]

1. e4 {[%clk 0:00:00]}  e5 {[%clk 0:00:00]} 2. Nf3 {[%clk 0:00:00]}  Nf6 {[%clk 0:00:00]} 3. Nxe5 {[%clk 0:00:00]}  d6 {[%clk 0:00:00]} 4. Nf3 {[%clk 0:00:00]}  Nxe4 {[%clk 0:00:00]} 5. d4 {[%clk 0:00:00]}  Be7 {[%clk 0:00:00]} 6. Bd3 {[%clk 0:00:00]}  d5 {[%clk 0:00:00]} 7. O-O {[%clk 0:00:00]}  Nc6 {[%clk 0:00:00]} 8. c4 {[%clk 0:00:00]}  Nb4 {[%clk 0:00:00]} 9. cxd5 {[%clk 0:00:00]}  Qxd5 {[%clk 0:00:00]} 10. Re1 {[%clk 0:00:00]}  Nxd3 {[%clk 0:00:00]} 11. Qxd3 {[%clk 0:00:00]}  Bf5 {[%clk 0:00:00]} 12. Bf4 {[%clk 0:00:00]}  O-O {[%clk 0:00:00]} 13. Nc3 {[%clk 0:00:00]}  Nxc3 {[%clk 0:00:00]} 14. Qxc3 {[%clk 0:00:00]}  Bd6 {[%clk 0:00:00]} 15. Bxd6 {[%clk 0:00:00]}  Qxd6 {[%clk 0:00:00]} 16. Re5 {[%clk 0:00:00]}  Bg6 {[%clk 0:00:00]} 17. Rae1 {[%clk 0:00:00]}  Rad8 {[%clk 0:00:00]} 18. h4 {[%clk 0:00:00]}  h6 {[%clk 0:00:00]} 19. h5 {[%clk 0:00:00]}  Bh7 {[%clk 0:00:00]} 20. a4 {[%clk 0:00:00]}  c6 {[%clk 0:00:00]} 21. b4 {[%clk 0:00:00]}  Kh8 {[%clk 0:00:00]} 22. Re7 {[%clk 0:00:00]}  Rd7 {[%clk 0:00:00]} 23. Rxd7 {[%clk 0:00:00]}  Qxd7 {[%clk 0:00:00]} 24. Qc5 {[%clk 0:00:00]}  Re8 {[%clk 0:00:00]} 25. Rxe8+ {[%clk 0:00:00]}  Qxe8 {[%clk 0:00:00]} 26. Qxa7 {[%clk 0:00:00]}  Qc8 {[%clk 0:00:00]} 27. Ne5 {[%clk 0:00:00]}  f6 {[%clk 0:00:00]} 28. Nf7+ {[%clk 0:00:00]}  Kg8 {[%clk 0:00:00]} 29. Nd6 {[%clk 0:00:00]}  Qd8 {[%clk 0:00:00]} 30. Qc5 {[%clk 0:00:00]}  Qe7 {[%clk 0:00:00]} 31. Nf5 {[%clk 0:00:00]}  Qe1+ {[%clk 0:00:00]} 32. Kh2 {[%clk 0:00:00]}  Qxf2 {[%clk 0:00:00]} 33. Qc4+ {[%clk 0:00:00]}  Kh8 {[%clk 0:00:00]} 34. Ng3 {[%clk 0:00:00]}  Qf4 {[%clk 0:00:00]} 35. Qc5 {[%clk 0:00:00]}  Qh4+ {[%clk 0:00:00]} 36. Kg1 {[%clk 0:00:00]}  Qxg3 {[%clk 0:00:00]} 37. Qf8+ {[%clk 0:00:00]}  Bg8 {[%clk 0:00:00]} 38. Qd8 {[%clk 0:00:00]}  Qd3 {[%clk 0:00:00]} 39. Kh2 {[%clk 0:00:00]}  Qf5 {[%clk 0:00:00]} 40. Qc7 {[%clk 0:00:00]}  Qxh5+ {[%clk 0:00:00]} 41. Kg3 {[%clk 0:00:00]}  Qg5+ {[%clk 0:00:00]} 42. Kh2 {[%clk 0:00:00]}  Qh4+ {[%clk 0:00:00]} 43. Kg1 {[%clk 0:00:00]}  Qxd4+ {[%clk 0:00:00]} 44. Kh1 {[%clk 0:00:00]}  Qxb4 {[%clk 0:00:00]} 45. a5 {[%clk 0:00:00]}  Kh7 {[%clk 0:00:00]} 46. Kh2 {[%clk 0:00:00]}  Bd5 {[%clk 0:00:00]} 47. Qg3 {[%clk 0:00:00]}  g5 {[%clk 0:00:00]} 48. Qd3+ {[%clk 0:00:00]}  Kg7 {[%clk 0:00:00]} 49. Qf5 {[%clk 0:00:00]}  Qf4+ {[%clk 0:00:00]} 50. Qxf4 {[%clk 0:00:00]}  gxf4 {[%clk 0:00:00]} 51. Kh3 {[%clk 0:00:00]}  Kg6 {[%clk 0:00:00]} 52. Kg4 {[%clk 0:00:00]}  h5+ {[%clk 0:00:00]} 53. Kxf4 {[%clk 0:00:00]}  Bxg2 {[%clk 0:00:00]} 54. Kg3 {[%clk 0:00:00]}  Be4 {[%clk 0:00:00]} 55. Kf4 {[%clk 0:00:00]}  f5 {[%clk 0:00:00]} 56. Kg3 {[%clk 0:00:00]}  Kg5 {[%clk 0:00:00]} 57. Kh3 {[%clk 0:00:00]}  f4 {[%clk 0:00:00]} 58. Kh2 {[%clk 0:00:00]}  Kg4 {[%clk 0:00:00]} 59. Kg1 {[%clk 0:00:00]}  Kg3 {[%clk 0:00:00]} 60. Kf1 {[%clk 0:00:00]}  h4 {[%clk 0:00:00]} 61. a6 {[%clk 0:00:00]}  bxa6 {[%clk 0:00:00]} 62. Kg1 {[%clk 0:00:00]}  h3 {[%clk 0:00:00]} 63. Kf1 {[%clk 0:00:00]}  h2 {[%clk 0:00:00]} 64. Ke2 {[%clk 0:00:00]}  h1=Q {[%clk 0:00:00]} 65. Kd2 {[%clk 0:00:00]}  Qg2+ {[%clk 0:00:00]} 66. Kc3 {[%clk 0:00:00]}  Qc2+ {[%clk 0:00:00]} 67. Kd4 {[%clk 0:00:00]}  Qd3+ {[%clk 0:00:00]} 68. Ke5 {[%clk 0:00:00]}  Qd5+ {[%clk 0:00:00]} 69. Kf6 {[%clk 0:00:00]}  c5 {[%clk 0:00:00]} 70. Ke7 {[%clk 0:00:00]}  c4 {[%clk 0:00:00]} 71. Kf6 {[%clk 0:00:00]}  c3 {[%clk 0:00:00]} 72. Ke7 {[%clk 0:00:00]}  c2 {[%clk 0:00:00]} 73. Kf6 {[%clk 0:00:00]}  c1=Q {[%clk 0:00:00]} 74. Kg7 {[%clk 0:00:00]}  a5 {[%clk 0:00:00]} 75. Kf6 {[%clk 0:00:00]}  a4 {[%clk 0:00:00]} 76. Kg7 {[%clk 0:00:00]}  a3 {[%clk 0:00:00]} 77. Kf6 {[%clk 0:00:00]}  a2 {[%clk 0:00:00]} 78. Ke7 {[%clk 0:00:00]}  a1=Q {[%clk 0:00:00]} 79. Ke8 {[%clk 0:00:00]}  Qc8+ {[%clk 0:00:00]} 80. Ke7 {[%clk 0:00:00]}  Qa7+ {[%clk 0:00:00]} 81. Kf6 {[%clk 0:00:00]}  Qaf7# {[%clk 0:00:00]} 0-1


[Site "https://www.chess.com"]

[Event "Titled Tuesday Blitz August 16 Early 2022"]
[White "Zia, Tahsin Tajwar"]
[Black "Karaev, Seit-Amet"]
[WhiteFideId "10211888"]
[BlackFideId "4169549"]
[WhiteElo "1800"]
[BlackElo "2272"]
[Result "0-1"]
[Round "05"]
[TimeControl "180+2"]
[Date "2022.08.18"]
[WhiteClock "0:00:00"]
[BlackClock "0:00:00"]

1. d4 {[%clk 0:00:00]}  Nf6 {[%clk 0:00:00]} 2. Nc3 {[%clk 0:00:00]}  c5 {[%clk 0:00:00]} 3. d5 {[%clk 0:00:00]}  d6 {[%clk 0:00:00]} 4. e4 {[%clk 0:00:00]}  a6 {[%clk 0:00:00]} 5. a4 {[%clk 0:00:00]}  g6 {[%clk 0:00:00]} 6. h3 {[%clk 0:00:00]}  Bg7 {[%clk 0:00:00]} 7. Nf3 {[%clk 0:00:00]}  O-O {[%clk 0:00:00]} 8. Be2 {[%clk 0:00:00]}  e5 {[%clk 0:00:00]} 9. O-O {[%clk 0:00:00]}  a5 {[%clk 0:00:00]} 10. Nd2 {[%clk 0:00:00]}  h6 {[%clk 0:00:00]} 11. Nc4 {[%clk 0:00:00]}  Na6 {[%clk 0:00:00]} 12. Nb5 {[%clk 0:00:00]}  Ne8 {[%clk 0:00:00]} 13. Bd2 {[%clk 0:00:00]}  b6 {[%clk 0:00:00]} 14. Qc1 {[%clk 0:00:00]}  Kh7 {[%clk 0:00:00]} 15. f4 {[%clk 0:00:00]}  exf4 {[%clk 0:00:00]} 16. Bxf4 {[%clk 0:00:00]}  f5 {[%clk 0:00:00]} 17. Ncxd6 {[%clk 0:00:00]}  g5 {[%clk 0:00:00]} 18. Bh2 {[%clk 0:00:00]}  f4 {[%clk 0:00:00]} 19. Nxe8 {[%clk 0:00:00]}  Qxe8 {[%clk 0:00:00]} 20. Bd3 {[%clk 0:00:00]}  Be5 {[%clk 0:00:00]} 21. c3 {[%clk 0:00:00]}  Kg7 {[%clk 0:00:00]} 22. Be2 {[%clk 0:00:00]}  Bd7 {[%clk 0:00:00]} 23. Qd1 {[%clk 0:00:00]}  Rd8 {[%clk 0:00:00]} 24. Na3 {[%clk 0:00:00]}  Nc7 {[%clk 0:00:00]} 25. Nc4 {[%clk 0:00:00]}  Rb8 {[%clk 0:00:00]} 26. Bh5 {[%clk 0:00:00]}  Qe7 {[%clk 0:00:00]} 27. d6 {[%clk 0:00:00]}  Bxd6 {[%clk 0:00:00]} 28. Qxd6 {[%clk 0:00:00]}  Qxd6 {[%clk 0:00:00]} 29. Nxd6 {[%clk 0:00:00]}  Rbd8 {[%clk 0:00:00]} 30. Rfd1 {[%clk 0:00:00]}  Be6 {[%clk 0:00:00]} 31. Bf3 {[%clk 0:00:00]}  Bb3 {[%clk 0:00:00]} 32. Rd2 {[%clk 0:00:00]}  Kf6 {[%clk 0:00:00]} 33. e5+ {[%clk 0:00:00]}  Kxe5 {[%clk 0:00:00]} 34. Re1+ {[%clk 0:00:00]}  Kf6 {[%clk 0:00:00]} 35. g3 {[%clk 0:00:00]}  Ne6 {[%clk 0:00:00]} 36. Bg4 {[%clk 0:00:00]}  fxg3 {[%clk 0:00:00]} 37. Bxg3 {[%clk 0:00:00]}  Nf4 {[%clk 0:00:00]} 38. Bxf4 {[%clk 0:00:00]}  gxf4 {[%clk 0:00:00]} 39. Kf2 {[%clk 0:00:00]}  Kg5 {[%clk 0:00:00]} 40. Re5+ {[%clk 0:00:00]}  Kg6 {[%clk 0:00:00]} 41. Kf3 {[%clk 0:00:00]}  Rf6 {[%clk 0:00:00]} 42. Bh5+ {[%clk 0:00:00]}  Kh7 {[%clk 0:00:00]} 43. Re7+ {[%clk 0:00:00]}  Kg8 {[%clk 0:00:00]} 44. Rg2+ {[%clk 0:00:00]}  Kf8 {[%clk 0:00:00]} 45. Re8+ {[%clk 0:00:00]}  Rxe8 {[%clk 0:00:00]} 46. Nxe8 {[%clk 0:00:00]}  Bd5+ {[%clk 0:00:00]} 47. Kf2 {[%clk 0:00:00]}  Rf5 {[%clk 0:00:00]} 48. Bg4 {[%clk 0:00:00]}  Re5 {[%clk 0:00:00]} 49. Bf3 {[%clk 0:00:00]}  Kxe8 {[%clk 0:00:00]} 50. Bxd5 {[%clk 0:00:00]}  Rxd5 {[%clk 0:00:00]} 51. Kf3 {[%clk 0:00:00]}  Rd3+ {[%clk 0:00:00]} 52. Kxf4 {[%clk 0:00:00]}  Rxh3 {[%clk 0:00:00]} 53. Rg6 {[%clk 0:00:00]}  Kd7 {[%clk 0:00:00]} 54. Rxb6 {[%clk 0:00:00]}  Rh4+ {[%clk 0:00:00]} 55. Kg3 {[%clk 0:00:00]}  Rxa4 {[%clk 0:00:00]} 56. Rb5 {[%clk 0:00:00]}  Kc6 {[%clk 0:00:00]} 57. Rb8 {[%clk 0:00:00]}  Re4 {[%clk 0:00:00]} 58. Ra8 {[%clk 0:00:00]}  Kb5 {[%clk 0:00:00]} 59. Rb8+ {[%clk 0:00:00]}  Kc4 {[%clk 0:00:00]} 60. Kf3 {[%clk 0:00:00]}  Re6 {[%clk 0:00:00]} 61. Rb7 {[%clk 0:00:00]}  a4 {[%clk 0:00:00]} 62. Kg4 {[%clk 0:00:00]}  Ra6 {[%clk 0:00:00]} 63. Kh5 {[%clk 0:00:00]}  a3 {[%clk 0:00:00]} 64. bxa3 {[%clk 0:00:00]}  Rxa3 {[%clk 0:00:00]} 65. Kxh6 {[%clk 0:00:00]}  Rxc3 {[%clk 0:00:00]} 66. Kg5 {[%clk 0:00:00]}  Re3 {[%clk 0:00:00]} 67. Kf4 {[%clk 0:00:00]}  Re1 {[%clk 0:00:00]} 68. Kf3 {[%clk 0:00:00]}  Kc3 {[%clk 0:00:00]} 69. Kf2 {[%clk 0:00:00]}  Re6 {[%clk 0:00:00]} 70. Rc7 {[%clk 0:00:00]}  c4 {[%clk 0:00:00]} 71. Rc6 {[%clk 0:00:00]}  Rxc6 {[%clk 0:00:00]} 0-1


[Site "https://www.chess.com"]